bitfinex/quotes_ETHUSD_20250406
["timestamp","ask_amount","ask_price","bid_price","bid_amount"]
[1743964898217,0.56814854,1629.2,1629.1,7.75121606]
[1743964898386,0.24856498,1629.2,1629.1,7.72075]
[1743964898598,5.7758717,1629.4,1629.3,6.1376]
[1743964898894,0.07669924,1630.2,1629.1,5.03603237]
[1743964899099,1.52,1630.3,1629.2,6.64154324]
[1743964899100,6.13399,1630.3,1629.2,6.64154324]
[1743964899300,6.13375,1630.4,1629.6,1.5824]
[1743964899484,5.7758717,1630.5,1630.3,7.71606]
[1743964899683,0.07665551,1631.3,1630.4,10.776]
[1743964899889,0.31935476,1631.0,1630.4,10.776]
[1743964900085,0.07663165,1631.4,1630.5,6.1329]
[1743964900289,6.12946,1631.5,1630.6,6.13244]
[1743964900487,0.1231918,1631.3,1631.2,6.13045]
[1743964900789,6.13003,1631.4,1631.2,10.772]
[1743964900981,0.0766242,1631.8,1631.2,10.772]
[1743964901185,1.25,1632.1,1631.2,10.772]
[1743964901186,0.07659633,1632.0,1631.3,1.5824]
[1743964901374,1.25,1632.1,1631.3,1.5824]
[1743964901576,6.12762,1632.0,1631.3,1.5824]
[1743964901775,0.07659688,1631.9,1631.3,1.5824]
[1743964901977,7.45373344,1632.1,1631.3,1.5824]
[1743964902175,6.12989,1631.4,1630.9,12.3544]
[1743964902405,0.74537334,1632.0,1631.1,14.41978725]
[1743964902715,1.25,1632.1,1631.8,6.12799]
[1743964902879,1.25,1632.1,1632.0,6.12390036]
[1743964903077,1.25,1632.1,1631.9,1.5824]
[1743964903387,7.37725,1632.1,1631.5,12.3594]
[1743964903702,1.25,1632.1,1631.7,6.12841]
[1743964903878,1.25,1632.1,1631.5,12.82358303]
[1743964904074,1.25,1632.1,1631.8,6.12802]
[1743964904306,1.25,1632.1,1632.0,6.12745]
[1743964904611,1.25,1632.1,1632.0,12.3484]
[1743964904820,7.64274,1633.3,1632.1,6.12707]
[1743964905111,12.32077357,1633.5,1632.6,6.12511]
[1743964905311,1.52,1633.6,1632.8,6.12423]
[1743964905479,0.76411,1633.6,1633.1,6.1233]
[1743964905681,0.13706375,1633.6,1633.2,10.81130509]
[1743964905882,1.52,1634.0,1633.2,10.81130509]
[1743964906080,7.71463227,1634.5,1633.7,6.12083]
[1743964906283,6.11584,1635.1,1634.2,8.28914725]
[1743964906497,0.12305301,1634.4,1634.3,16.88582]
[1743964906696,6.11617,1635.1,1634.2,14.40817725]
[1743964906896,6.11642,1635.0,1634.2,8.28914725]
[1743964907110,1.52,1635.2,1634.3,16.88661]
[1743964907322,7.71079934,1635.5,1634.5,9.87154725]
[1743964907482,7.71079934,1635.5,1634.1,44.709]
[1743964907483,6.11508,1635.3,1634.2,8.28914725]
[1743964907691,6.11769,1634.7,1634.1,12.3644]
[1743964907892,6.11749,1634.7,1634.1,12.3644]
[1743964908190,6.11658,1634.9,1634.1,12.3644]
[1743964908422,6.11545,1635.2,1634.1,2.3644]
[1743964908599,6.11541,1635.3,1634.4,6.11824]
[1743964908802,0.07644075,1635.3,1634.2,8.28914725]
[1743964909000,1.52,1635.5,1634.5,8.28914725]
[1743964909231,6.11624,1635.0,1634.5,8.28914725]
[1743964909533,6.11522,1635.3,1634.5,8.28914725]
[1743964909721,0.611522,1635.3,1634.5,8.28914725]
[1743964909927,0.07644581,1635.4,1634.5,8.28914725]
[1743964910123,6.11605,1635.1,1634.5,8.28914725]
[1743964910426,6.11509,1635.3,1634.5,14.40712725]
[1743964910613,6.11549,1635.2,1634.5,8.28914725]
[1743964910930,4.52,1635.0,1633.6,8.28914725]
[1743964911130,6.11898,1634.3,1633.6,19.16314725]
[1743964911374,6.12055,1633.9,1633.6,10.874]
[1743964911492,6.12086,1633.8,1633.6,10.874]
[1743964911833,4.52,1634.2,1633.1,1.5824]
[1743964912003,6.11899,1634.3,1633.6,8.28914725]
[1743964912209,7.63803,1634.6,1633.8,6.12064]
[1743964912526,6.1186,1634.4,1633.7,18.57737]
[1743964912732,6.1186,1634.4,1633.7,12.4564]
[1743964912916,6.11866,1634.4,1633.7,12.4564]
[1743964913117,0.07648288,1634.8,1633.7,12.4564]
[1743964913328,6.11788,1634.6,1633.8,6.12051]
[1743964913527,6.1174,1634.7,1633.8,6.1205]
[1743964913732,6.11787,1634.6,1633.8,7.97821]
[1743964914107,6.11888,1634.3,1633.7,1.5824]
[1743964914307,6.11894,1634.3,1633.7,12.4274]
[1743964914509,6.11947,1634.2,1633.7,12.4274]
[1743964914708,6.11801,1634.6,1633.3,8.28914725]
[1743964914709,6.12032,1633.9,1633.3,12.4542]
[1743964915030,6.11945,1634.2,1633.3,12.4542]
[1743964915232,6.12015,1634.0,1633.4,0.0272553]
[1743964915431,6.11998,1634.0,1633.5,0.02726537]
[1743964915631,6.11958,1634.1,1633.5,0.02726537]
[1743964916000,6.11963,1634.1,1633.3,9.87534725]
[1743964916196,7.62899,1634.4,1633.3,9.87534725]
[1743964916197,6.12077,1633.8,1633.3,1.5862]
[1743964916503,1.5105,1634.4,1633.3,1.5862]
[1743964916837,6.12148,1633.6,1633.4,0.02729174]
[1743964917135,6.12037,1633.9,1633.0,1.5862]
[1743964917334,6.12171,1633.6,1632.7,10.845]
[1743964917542,6.11995,1634.0,1632.9,6.12393]
[1743964917702,6.12088,1633.8,1633.0,6.15083691]
[1743964917903,6.12118,1633.7,1633.0,0.02729691]
[1743964918223,6.733358,1633.7,1632.9,16.97189]
[1743964918423,0.1,1635.0,1633.2,1.54]
[1743964918739,6.11937,1634.2,1633.4,8.28914725]
[1743964918903,6.1204,1633.9,1633.3,10.87]
[1743964919236,6.11985,1634.1,1633.4,8.28914725]
[1743964919401,6.11985,1634.1,1633.4,14.43857426]
[1743964919602,6.11985,1634.1,1633.2,45.623]
[1743964919603,6.12132,1633.7,1633.2,45.623]
[1743964919811,6.12071,1633.8,1633.2,1.54]
[1743964920014,6.12121,1633.7,1633.2,1.54]
[1743964920334,6.12078,1633.8,1633.3,0.02729709]
[1743964920635,0.07650653,1633.7,1633.2,1.54]
[1743964920838,6.12092,1633.8,1633.3,0.02728448]
[1743964921005,7.65208,1634.1,1633.2,1.54]
[1743964921202,6.12203,1633.5,1632.8,1.54]
[1743964921434,6.12261,1633.3,1632.9,0.02733787]
[1743964921637,6.12261,1633.3,1632.8,1.54]
[1743964921638,12.24546,1633.3,1632.8,1.54]
[1743964921946,12.24546,1633.3,1632.7,10.789]
[1743964921947,6.12371,1633.0,1632.7,10.789]
[1743964922342,6.1248,1632.8,1632.4,1.54]
[1743964922543,6.12519,1632.6,1632.1,1.54]
[1743964922743,6.12596,1632.4,1631.8,1.54]
[1743964923048,6.81355128,1632.8,1631.7,10.763]
[1743964923049,0.07657591,1632.3,1631.7,10.763]
[1743964923353,6.12932,1631.5,1630.9,1.54]
[1743964923552,6.13051,1631.2,1630.9,1.54]
[1743964923705,6.13142,1631.0,1630.5,12.294]
[1743964923914,6.13061,1631.2,1630.5,12.294]
[1743964924112,6.742262,1631.5,1630.5,12.294]
[1743964924308,6.12857,1631.7,1630.8,6.13158]
[1743964924535,6.12857,1631.7,1630.9,0.02750582]
[1743964924735,7.65883,1632.3,1631.2,6.13045]
[1743964924908,6.20345517,1632.2,1631.4,6.12935]
[1743964925109,7.73543972,1632.3,1631.5,0.02745085]
[1743964925309,6.12702,1632.2,1631.5,10.742]
[1743964925507,0.54514247,1632.1,1631.0,1.54]
[1743964925712,1.5325,1631.8,1630.6,1.54]
[1743964926014,6.13028,1631.3,1630.6,1.54]
[1743964926207,6.13047,1631.2,1630.6,1.54]
[1743964926408,7.66087,1631.8,1630.7,0.02753139]
[1743964926649,6.12901,1631.6,1630.8,6.13166]
[1743964927012,6.12954,1631.5,1630.6,12.514176]
[1743964927210,6.20526752,1631.7,1630.9,6.13143]
[1743964927407,6.12767,1632.0,1631.2,6.13015]
[1743964927711,7.65839,1632.5,1631.4,6.1297]
[1743964927913,7.65823,1632.5,1631.7,6.12856]
[1743964928145,6.12634,1632.3,1631.8,10.746]
[1743964928310,6.12713,1632.1,1631.3,18.41581]
[1743964928509,6.12446,1632.8,1631.5,6.67908]
[1743964928713,1.5325,1632.9,1632.0,1.54]
[1743964928913,6.12334,1633.1,1632.3,6.12629]
[1743964929159,7.6551,1633.3,1632.6,6.12485]
[1743964929362,7.6551,1633.3,1632.1,10.746]
[1743964929363,6.12369,1633.1,1632.1,10.746]
[1743964929522,2.29801,1633.3,1632.6,6.12492]
[1743964929852,1.5278661,1634.1,1633.0,0.55]
[1743964930052,7.6476361,1634.1,1633.3,12.24475]
[1743964930359,4.01272283,1634.5,1633.4,1.60119989]
[1743964930540,6.11899,1634.3,1633.5,6.12164]
[1743964930858,3.04919668,1634.2,1633.4,1.54]
[1743964931010,6.1213,1633.7,1633.2,10.746]
[1743964931211,6.11845,1634.4,1633.2,10.746]
[1743964931522,6.12064,1633.9,1633.2,10.746]
[1743964931723,6.12235,1633.4,1632.9,1.54]
[1743964931952,6.12387,1633.0,1632.3,10.745]
[1743964932250,0.04919668,1633.3,1632.6,6.12504]
[1743964932451,0.04919668,1633.4,1632.7,0.06122878]
[1743964932758,3.0,1633.0,1631.8,12.2575]
[1743964932923,7.71016,1632.8,1631.9,0.06126032]
[1743964933125,6.12557,1632.5,1631.4,1.5125]
[1743964933324,6.12703,1632.2,1631.4,1.5125]
[1743964933537,6.12774,1632.0,1631.4,12.2565]
[1743964933846,6.12686,1632.2,1631.4,18.386]
[1743964934073,12.2498,1632.7,1631.9,6.12749]
[1743964934249,6.12521,1632.6,1631.9,10.744]
[1743964934454,6.12483,1632.7,1631.9,10.744]
[1743964934757,6.12587,1632.5,1631.9,10.744]
[1743964934955,6.12618,1632.4,1631.9,10.744]
[1743964935295,0.04919668,1632.3,1631.4,2.92843825]
[1743964935438,6.12651,1632.3,1631.4,1.5125]
[1743964935627,6.12651,1632.3,1631.5,6.19028241]
[1743964935833,6.12809,1631.9,1631.4,1.5125]
[1743964936034,1.63469668,1632.1,1631.4,1.5125]
[1743964936260,9.12655,1632.3,1631.5,6.19045622]
[1743964936475,0.04919668,1632.2,1631.4,1.5125]
[1743964936641,3.04919668,1632.3,1631.4,1.5125]
[1743964936845,6.12747,1632.0,1631.4,1.5125]
[1743964937068,6.17725668,1631.9,1631.4,1.5125]
[1743964937435,6.12778,1632.0,1631.4,1.5125]
[1743964937737,6.17726668,1631.9,1631.4,1.5125]
[1743964937964,13.745,1632.3,1631.5,0.06128414]
[1743964938269,0.562493,1632.2,1631.5,6.12909]
[1743964938475,0.562493,1632.2,1631.5,0.06127102]
[1743964938476,6.17662668,1632.1,1631.5,0.06127102]
[1743964938676,0.562493,1632.2,1631.5,12.25826]
[1743964938978,0.04919668,1632.1,1631.5,6.12914]
[1743964939180,0.04919668,1632.2,1631.5,12.25821]
[1743964939343,0.66675135,1632.2,1631.4,1.5125]
[1743964939545,0.04919668,1632.2,1631.6,6.12894]
[1743964939779,1.5855,1632.4,1631.8,6.12803]
[1743964939963,1.5737,1632.8,1632.0,1.6313]
[1743964940163,1.62289668,1632.8,1632.1,6.18812527]
[1743964940448,1.5737,1632.8,1632.3,6.12624]
[1743964940643,0.04919668,1633.1,1632.4,0.06124927]
[1743964940849,0.04919668,1633.4,1632.7,7.75597]
[1743964941088,6.1241,1632.9,1632.7,1.6313]
[1743964941244,6.1241,1632.9,1632.2,50.23461]
[1743964941245,0.04919668,1632.8,1632.3,1.6313]
[1743964941450,3.04919668,1633.3,1632.3,1.6313]
[1743964941796,7.69753,1633.0,1632.3,1.6313]
[1743964941949,6.12503,1632.7,1632.3,1.6313]
[1743964942150,6.17422668,1632.7,1632.1,10.746]
[1743964942477,0.04919668,1632.7,1632.0,1.6313]
[1743964942704,6.1255,1632.6,1632.0,1.6313]
[1743964942881,6.12664,1632.3,1631.7,1.6108]
[1743964943050,0.04919668,1632.6,1631.8,0.0612673]
[1743964943254,0.56401943,1632.5,1632.3,6.12625]
[1743964943492,0.56401943,1632.5,1632.0,10.744]
[1743964943853,0.56401943,1632.5,1632.1,0.0612587]
[1743964944195,0.56401943,1632.5,1632.0,16.87142]
[1743964944356,6.68977943,1632.5,1632.0,10.744]
[1743964944699,6.12683,1632.2,1631.4,6.12953]
[1743964944853,6.1271,1632.1,1631.3,6.13002]
[1743964945056,6.12672,1632.2,1631.3,1.73283614]
[1743964945299,6.17627668,1632.1,1631.4,6.1297]
[1743964945595,6.12851,1631.8,1631.2,1.6108]
[1743964945758,6.17712668,1631.9,1631.2,1.6108]
[1743964945958,6.12918,1631.6,1630.9,1.6108]
[1743964946154,6.12918,1631.6,1630.6,1.6108]
[1743964946155,6.13163,1630.9,1630.6,1.6108]
[1743964946353,6.13247,1630.7,1630.2,1.6108]
[1743964946657,6.13198,1630.8,1630.2,1.6108]
[1743964946853,6.13272,1630.6,1630.1,10.744]
[1743964947052,6.13272,1630.6,1629.9,1.6108]
[1743964947053,6.69654943,1630.7,1630.0,6.13482]
[1743964947476,6.13446,1630.2,1629.7,10.744]
[1743964948002,6.13368,1630.4,1629.7,10.744]
[1743964948176,6.69820943,1630.3,1629.7,10.744]
[1743964948367,0.56401943,1630.3,1629.7,10.744]
[1743964948567,0.04919668,1630.2,1629.7,10.744]
[1743964949266,6.18342668,1630.2,1629.6,1.6108]
[1743964949463,6.18272668,1630.4,1629.7,6.13595]
[1743964949667,0.04919668,1630.4,1629.7,0.8360226]
[1743964949867,6.13398,1630.3,1629.6,1.6108]
[1743964950167,6.13398,1630.3,1629.2,1.6108]
[1743964950168,6.13577,1629.8,1629.2,1.6108]
[1743964950491,0.04919668,1630.2,1629.6,6.13631]
[1743964950693,1.636,1630.5,1629.8,1.6108]
[1743964950862,0.80177489,1631.0,1630.3,6.13368]
[1743964951053,6.18020668,1631.1,1630.4,0.06131945]
[1743964951259,6.13127,1631.0,1630.4,0.06131945]
[1743964951459,6.13127,1631.0,1630.3,6.13357]
[1743964951860,6.13214,1630.8,1630.2,10.751]
[1743964952193,6.13141,1631.0,1630.2,16.88498]
[1743964952370,6.13141,1631.0,1630.3,6.13363]
[1743964952759,0.04919668,1631.1,1630.4,7.76376812]
[1743964952965,0.04919668,1631.1,1630.4,1.569]
[1743964952966,6.13134,1631.0,1630.4,1.569]
[1743964953592,6.18053668,1631.0,1630.4,1.569]
[1743964953794,6.13172,1630.9,1630.4,1.569]
[1743964953994,6.13135,1631.0,1630.4,1.569]
[1743964954191,1.68519668,1631.2,1630.4,1.569]
[1743964954397,1.636,1631.2,1630.6,6.13253]
[1743964954763,6.1305,1631.2,1630.5,6.13274]
[1743964955064,16.87937,1631.8,1630.5,6.13274]
[1743964955065,6.12784,1631.9,1630.9,0.55]
[1743964955261,6.12784,1631.9,1630.7,1.569]
[1743964955262,0.04919668,1631.8,1630.7,1.569]
[1743964955489,6.1307,1631.2,1630.4,7.70232]
[1743964955657,12.26142,1631.2,1630.4,14.605802]
[1743964955861,6.1307,1631.2,1630.5,6.13304]
[1743964956102,6.13077,1631.2,1630.4,2.339232]
[1743964956267,6.13087,1631.1,1630.5,0.06131174]
[1743964956673,0.04919668,1631.1,1630.4,1.569]
[1743964957014,6.13146,1631.0,1630.4,1.569]
[1743964957209,6.1297,1631.4,1630.7,6.13219]
[1743964957395,6.13162,1630.9,1630.6,10.75]
[1743964957727,6.13175,1630.9,1630.4,1.569]
[1743964957880,0.04919668,1630.8,1630.1,1.97821704]
[1743964958074,3.0,1631.3,1630.1,1.97821704]
[1743964958075,6.17978668,1631.2,1630.5,6.13276]
[1743964958380,6.1282,1631.8,1630.7,1.5251]
[1743964958600,6.79063668,1631.7,1630.7,1.5251]
[1743964958806,6.12822,1631.8,1631.1,12.26143]
[1743964959005,6.12861,1631.7,1631.0,6.13101]
[1743964959200,7.77155,1631.9,1631.2,6.13042]
[1743964959379,6.12821,1631.8,1631.1,6.13079]
[1743964959575,6.12745,1632.0,1631.3,7.65513]
[1743964959887,6.12877,1631.7,1631.3,1.5251]
[1743964960099,3.0,1631.9,1631.0,1.5251]
[1743964960414,6.13021,1631.3,1630.3,1.5251]
[1743964960573,6.1322,1630.8,1630.3,1.5251]
[1743964960976,7.77455,1631.1,1630.4,6.13322]
[1743964961207,6.13134,1631.0,1630.3,7.65891]
[1743964961412,9.13008,1631.3,1630.3,1.5251]
[1743964961612,6.13083,1631.1,1630.3,1.5251]
[1743964961808,12.26371,1630.9,1630.3,1.5251]
[1743964962016,6.13251,1630.7,1630.3,1.5251]
[1743964962191,12.2627,1631.0,1630.3,1.5251]
[1743964962389,6.13051,1631.2,1630.4,6.13346]
[1743964962592,6.13101,1631.1,1630.5,0.613346]
[1743964962913,6.13011,1631.3,1630.6,6.19377069]
[1743964963076,12.25892,1631.5,1630.8,6.13183]
[1743964963278,6.12933,1631.5,1631.0,1.6438]
[1743964963500,6.1297,1631.4,1631.1,0.0612968]
[1743964963711,10.79324,1631.7,1630.6,1.6438]
[1743964963907,6.12987,1631.4,1630.6,1.6438]
[1743964964122,3.0,1631.3,1630.6,1.6438]
[1743964964425,6.13187,1630.9,1630.3,12.3918]
[1743964964629,6.13187,1630.9,1630.4,1.23918]
[1743964964836,6.13187,1630.9,1630.3,1.6438]
[1743964965133,1.6643,1631.1,1630.3,1.6438]
[1743964965299,7.79535,1631.1,1630.3,1.6438]
[1743964965499,0.04919668,1631.2,1630.4,0.06131502]
[1743964965729,6.17819668,1631.6,1630.9,6.13137]
[1743964966035,0.04919668,1631.8,1631.1,7.77461]
[1743964966199,6.1287,1631.7,1631.1,1.6438]
[1743964966395,6.13361,1630.4,1630.2,1.6438]
[1743964966729,6.13327,1630.5,1629.8,6.13553]
[1743964966730,6.13343,1630.5,1629.8,6.13553]
[1743964967026,12.26667,1630.5,1629.9,0.613553]
[1743964967328,6.1335,1630.4,1629.9,0.613553]
[1743964967531,6.13267,1630.7,1629.8,6.13572]
[1743964967752,6.13267,1630.7,1630.0,6.13472]
[1743964967897,6.13198,1630.8,1629.9,10.748]
[1743964968096,12.26416,1630.8,1630.1,6.13438]
[1743964968298,6.13234,1630.7,1630.2,0.613438]
[1743964968498,6.1316,1630.9,1630.3,1.6438]
[1743964968731,6.13125,1631.0,1630.3,1.610632]
[1743964968921,6.13125,1631.0,1630.3,13.877832]
[1743964969118,6.13125,1631.0,1630.4,6.13341]
[1743964969322,6.1316,1630.9,1630.3,7.744452]
[1743964969631,6.13093,1631.1,1630.4,12.2666]
[1743964969933,12.31119668,1631.1,1630.4,6.13326]
[1743964970233,6.13087,1631.1,1630.4,6.13328]
[1743964970429,12.26193,1631.1,1630.4,16.88128]
[1743964970633,6.13026,1631.3,1630.6,6.13255]
[1743964970820,6.13127,1631.0,1630.4,12.73597742]
[1743964971002,6.13127,1631.0,1630.4,18.86938742]
[1743964971204,12.26051,1631.3,1630.6,6.13246]
[1743964971543,6.13122,1631.0,1630.4,18.86941742]
[1743964971742,6.13045,1631.2,1630.5,0.06131174]
[1743964971917,6.13066,1631.2,1630.5,9.13302]
[1743964972251,6.1305,1631.2,1630.5,6.13272]
[1743964972558,12.26119,1631.2,1630.6,0.613272]
[1743964972868,10.79364,1631.5,1630.4,12.73597742]
[1743964972869,0.04919668,1631.1,1630.4,12.73597742]
[1743964973014,12.83074401,1631.1,1630.4,12.73597742]
[1743964973214,12.83074401,1631.1,1630.4,18.86929742]
[1743964973447,0.56878401,1631.1,1630.4,12.73597742]
[1743964973611,6.13141,1631.0,1630.5,0.0613139]
[1743964973815,0.61798069,1631.1,1630.5,0.0613139]
[1743964974016,0.56878401,1630.9,1630.3,1.610632]
[1743964974245,6.70055401,1630.9,1630.3,7.744462]
[1743964974414,0.56878401,1630.9,1630.4,0.06131875]
[1743964974620,0.56878401,1630.9,1630.4,1.39394308]
[1743964974842,0.56878401,1630.9,1630.5,6.13286]
[1743964975047,0.56878401,1630.9,1630.7,6.132]
[1743964975271,0.56878401,1631.3,1630.8,12.3669]
[1743964975568,6.13047,1631.2,1630.8,12.3669]
[1743964975766,6.13047,1631.2,1630.8,1.6219]
[1743964975767,6.13069,1631.2,1630.8,1.6219]
[1743964976271,6.13095,1631.1,1630.8,1.6219]
[1743964976753,12.26117,1631.2,1630.8,1.6219]
[1743964976929,0.56878401,1631.0,1630.8,1.6219]
[1743964977514,0.56878401,1631.0,1630.5,1.5987]
[1743964977753,6.70014401,1631.0,1630.5,1.5987]
[1743964977919,0.61798069,1631.0,1630.5,1.5987]
[1743964978119,6.1326,1630.7,1630.2,45.7467]
[1743964978320,6.13361,1630.4,1629.9,1.5987]
[1743964978540,6.13283,1630.6,1629.9,13.86905]
[1743964978742,6.13223,1630.8,1630.2,6.13404]
[1743964978935,6.70039401,1630.9,1630.2,12.26808]
[1743964979144,0.56878401,1630.8,1630.4,6.13333]
[1743964979355,0.56878401,1630.8,1630.5,0.06132143]
[1743964979731,0.56878401,1630.8,1630.5,1.5987]
[1743964980966,0.56878401,1630.7,1630.5,1.5987]
[1743964981338,0.56878401,1630.7,1630.6,0.06132028]
[1743964981546,0.56878401,1630.7,1630.6,6.19403028]
[1743964981741,0.071098,1630.7,1630.6,11.13657724]
[1743964981950,5.7379144,1631.8,1630.9,1.0332]
[1743964982138,5.7379144,1631.8,1631.5,1.0332]
[1743964982339,11.8661244,1631.8,1631.5,1.0332]
[1743964982529,5.7379144,1631.8,1631.5,1.0332]
[1743964982942,5.7379144,1631.8,1631.6,6.19007636]
[1743964983230,5.6379144,1631.8,1631.7,6.12857]
[1743964983573,6.12326,1633.2,1631.7,6.12857]
[1743964983574,6.12218,1633.5,1632.4,7.63492]
[1743964983782,1.55559668,1633.4,1632.5,0.06123899]
[1743964983988,6.12463,1632.8,1632.4,12.249]
[1743964984151,6.12463,1632.8,1632.0,61.00223]
[1743964984152,5.94793375,1632.6,1632.0,61.00223]
[1743964984471,12.07341375,1632.6,1632.0,44.137]
[1743964984671,5.94793375,1632.6,1632.0,44.137]
[1743964985037,5.94793375,1632.6,1632.1,6.18830376]
[1743964985270,5.94793375,1632.6,1632.0,44.137]
[1743964985449,12.07334375,1632.6,1632.0,44.137]
[1743964985756,5.94793375,1632.6,1632.0,55.12189808]
[1743964986042,5.94793375,1632.6,1632.0,44.137]
[1743964986043,6.12566,1632.5,1632.0,44.137]
[1743964986230,5.94793375,1632.6,1632.1,0.06125905]
[1743964986643,12.07317375,1632.6,1632.0,44.137]
[1743964986841,12.07313375,1632.6,1632.0,44.137]
[1743964987043,6.12628,1632.4,1631.7,12.242]
[1743964987379,6.1273,1632.1,1631.7,1.509]
[1743964987679,6.12791,1631.9,1631.4,1.509]
[1743964987835,0.04919668,1632.0,1630.9,11.87446324]
[1743964987836,6.1295,1631.5,1631.0,1.509]
[1743964988035,0.04919668,1631.5,1631.0,1.509]
[1743964988270,6.1295,1631.5,1631.0,1.509]
[1743964988436,9.12771,1632.0,1631.0,1.509]
[1743964988437,6.17913668,1631.4,1631.0,1.509]
[1743964988637,6.12994,1631.4,1630.9,10.733]
[1743964988842,6.13104,1631.1,1630.7,12.241]
[1743964989282,6.13289,1630.6,1630.2,1.509]
[1743964989492,3.04919668,1630.8,1629.8,1.509]
[1743964989780,6.13572,1629.8,1629.7,6.29104377]
[1743964989982,6.13572,1629.8,1628.9,6.45862083]
[1743964989983,6.13707,1629.5,1629.1,1.509]
[1743964990138,6.13681,1629.6,1629.1,1.509]
[1743964990337,15.2374,1630.2,1628.8,1.509]
[1743964990338,6.18605668,1629.5,1628.8,1.509]
[1743964990564,6.13708,1629.5,1628.9,0.06137312]
[1743964990769,6.13741,1629.4,1628.8,12.24]
[1743964991041,0.04919668,1629.4,1628.9,0.06137759]
[1743964991255,0.04919668,1629.6,1628.6,12.43121377]
[1743964991461,1.5064,1630.1,1629.2,1.509]
[1743964991659,6.13346,1630.4,1629.3,10.79235812]
[1743964991856,6.13346,1630.4,1629.4,1.07923581]
[1743964991857,6.13599,1629.8,1629.4,1.07923581]
[1743964992065,6.13704,1629.5,1628.9,1.509]
[1743964992290,6.13565,1629.9,1629.0,6.13873]
[1743964992460,6.13721,1629.5,1628.9,1.509]
[1743964992847,6.13719,1629.5,1628.9,1.509]
[1743964993042,6.13665,1629.6,1628.9,1.509]
[1743964993265,6.13688,1629.5,1628.9,1.509]
[1743964993593,6.1364,1629.7,1628.9,8.87193]
[1743964993760,6.18559668,1629.7,1629.0,10.79537083]
[1743964993954,6.1369,1629.5,1629.0,10.79537083]
[1743964994180,6.13659,1629.6,1629.0,10.734]
[1743964994353,6.13705,1629.5,1629.0,12.0807]
[1743964994665,6.13572,1629.8,1629.0,1.3467]
[1743964994873,6.13709,1629.5,1628.9,12.242]
[1743964995086,6.13819,1629.2,1628.9,1.509]
[1743964995261,12.27495,1629.4,1628.9,1.509]
[1743964995559,6.13765,1629.3,1628.9,1.509]
[1743964995758,6.13676,1629.6,1629.0,0.06137728]
[1743964995957,6.1356,1629.9,1629.2,6.1378]
[1743964996312,6.1346,1630.1,1629.5,1.635]
[1743964996516,6.13479,1630.1,1629.3,16.87259]
[1743964996796,6.13421,1630.2,1629.3,54.894]
[1743964996962,6.13421,1630.2,1629.3,60.5469]
[1743964996963,6.13577,1629.8,1629.3,60.5469]
[1743964997163,6.13535,1629.9,1629.3,54.894]
[1743964997384,12.27105,1629.9,1629.3,54.894]
[1743964997567,6.18516668,1629.8,1629.3,54.894]
[1743964997774,12.32121668,1629.8,1629.3,54.894]
[1743964997970,6.13517,1630.0,1629.3,54.894]
[1743964998175,6.13541,1629.9,1629.4,5.4894]
[1743964998386,5.93901595,1630.1,1629.5,0.06135584]
[1743964998570,5.93901595,1630.1,1629.4,11.62656]
[1743964998790,5.93901595,1630.1,1629.6,3.0]
[1743964998994,5.93901595,1630.1,1629.9,6.13514]
[1743964999159,5.93901595,1630.1,1630.0,10.733]
[1743964999811,5.93901595,1630.1,1629.7,7.74807]
[1743964999812,5.93901595,1630.1,1629.7,1.612]
[1743964999964,5.93901595,1630.1,1629.9,16.87014]
[1743965000269,5.93901595,1630.1,1629.7,1.67334254]
[1743965000270,6.13516,1630.0,1629.7,12.346]
[1743965000599,6.13589,1629.8,1629.4,1.612]
[1743965000969,6.13649,1629.6,1629.3,10.734]
[1743965001170,6.18475668,1629.9,1629.3,11.8074]
[1743965001369,6.13556,1629.9,1629.3,11.8074]
[1743965001789,6.1346,1630.1,1629.4,6.19852593]
[1743965001987,6.13449,1630.2,1629.5,6.13662]
[1743965002204,6.18305668,1630.3,1629.6,2.225662]
[1743965002515,7.78482668,1630.5,1629.8,6.13543]
[1743965002688,5.93901595,1630.6,1629.9,10.734]
[1743965002889,6.13339,1630.5,1629.9,10.734]
[1743965003200,12.26678,1630.5,1629.9,10.734]
[1743965003386,12.07172595,1630.6,1629.9,10.734]
[1743965003585,6.13271,1630.6,1629.9,18.556283]
[1743965003779,6.13314,1630.5,1629.9,12.420963]
[1743965004311,0.04919668,1630.4,1629.9,10.734]
[1743965004613,12.73764375,1630.7,1629.9,10.734]
[1743965004911,25.00266375,1630.7,1630.0,6.1347]
[1743965005076,6.13274,1630.6,1630.0,6.1347]
[1743965005283,18.87006375,1630.7,1630.0,6.1347]
[1743965005504,6.1328,1630.6,1630.1,0.61347]
[1743965005818,12.73764375,1630.7,1630.2,1.612]
[1743965006321,6.13362,1630.4,1630.0,10.731]
[1743965006487,12.73764375,1630.7,1630.1,6.19590654]
[1743965006692,6.13291,1630.6,1630.2,0.61959065]
[1743965006886,6.13408,1630.3,1630.0,10.731]
[1743965007086,6.13346,1630.4,1630.0,10.731]
[1743965007287,6.1331,1630.5,1630.0,10.731]
[1743965007601,6.13347,1630.4,1630.0,10.731]
[1743965008312,6.13397,1630.3,1630.0,10.731]
[1743965008812,6.13588,1629.8,1629.6,1.612]
[1743965009019,1.65149668,1630.0,1629.3,12.34]
[1743965009179,1.65149668,1630.0,1629.3,1.612]
[1743965009386,6.13592,1629.8,1629.3,1.612]
[1743965009712,1.65149668,1630.0,1629.2,10.728]
[1743965009713,6.13666,1629.6,1629.2,10.728]
[1743965009885,6.18609668,1629.5,1628.9,2.112]